Cogmind - Beta 13 @@@ ROGUE MODE // 2024.04.05 @ 22:07:09 Player: chexo4 Result: Destroyed by as-03248 with Assembled Heavy Rifle Performance ------------- Evolutions (0) 0 Regions Visited (0) 0 Robots Destroyed (6) 30 Value Destroyed (41) 41 Prototype IDs (0) 0 Alien Tech Used (0) 0 Bonus (0) 0 TOTAL SCORE: 71 Bonus ------- None Cogmind --------- Core Integrity 0/250 Matter 220/300 Energy 76/100 System Corruption 0% Temperature Cool (15) Movement Core (100) Ox1 Location -11/Scrapyard Parts ------- > --- POWER (1) -------- (None) > --- PROPULSION (2) --- (None) > --- UTILITY (2) ------ Small Storage Unit Seismic Detector > --- WEAPON (2) ------- (None) > --- INVENTORY (8) ---- Light Ion Engine Improved Terrain Scanner Tractor Beam Peak State ------------ > --- POWER ------------ Ion Engine > --- PROPULSION ------- Aluminum Leg Aluminum Leg > --- UTILITY ---------- Small Storage Unit Improved Terrain Scanner > --- WEAPON ----------- Medium Laser Assault Rifle > --- INVENTORY -------- Light Ion Engine Tractor Beam [Rating: 9] Favorites ----------- Power Ion Engine Engine Ion Engine Propulsion Aluminum Leg Leg Aluminum Leg Utility Small Storage Unit Device Improved Terrain Scanner Storage Small Storage Unit Weapon Assault Rifle Energy Gun Medium Laser Ballistic Gun Assault Rifle Special Weapon Mining Laser Build | -11 ------- Run | Yrd Slots Evolved . | . Power . | . Propulsion . | . Utility . | . Weapon . | . Parts Attached 11 | 11 Power 1 | 1 Engine 1 | 1 Core . | . Reactor . | . Propulsion 2 | 2 Treads . | . Leg 2 | 2 Wheel . | . Hover . | . Flight . | . Utility 3 | 3 Device 2 | 2 Storage 1 | 1 Processor . | . Hackware . | . Protection . | . Artifact . | . Weapon 5 | 5 Energy Gun 2 | 2 Energy Cannon . | . Ballistic Gun 1 | 1 Ballistic Cannon . | . Launcher . | . Special Weapon 2 | 2 Impact Weapon . | . Slashing Weapon . | . Piercing Weapon . | . Special Melee Weapon . | . Unidentified Prototypes . | . Parts Lost 6 | 6 Power 1 | 1 Propulsion 2 | 2 Utility . | . Weapon 3 | 3 Highest Loss Streak 6 | 6 To Critical Strikes . | . Average Slot Usage (%) . | . Naked Turns . | . Heaviest Build 15 | 15 Greatest Support 20 | 20 Greatest Overweight (x) 2 | 2 Average Overweight (x) . | . Largest Inventory Capacity 8 | 8 Average Capacity 7 | 7 Most Carried 4 | 4 Average Carried 3 | 3 Final Capacity 8 | 8 Final Carried 3 | 3 Class Distribution -------------------- None Dominant Class ---------------- None Resources | -11 ----------- Run | Yrd Matter Collected 221 | 221 Remotely . | . Salvage Created 144 | 144 Parts 19 | 19 Haulers Intercepted . | . Recyclers Shooed . | . Parts Field Recycled . | . Retrieved Matter . | . Parts Self-Destructed . | . Prevented . | . Kills | -11 ------- Run | Yrd Combat Hostiles Destroyed . | . Classes Destroyed 2 | 2 Tunneler 5 | 5 Recycler 1 | 1 Best Kill Streak 5 | 5 Combat Bots Only . | . Max Kills in Single Turn 1 | 1 Gunslinging . | . Exploded . | . Melee . | . Uniques/NPCs Destroyed . | . Combat | -11 -------- Run | Yrd Hostile Shots Fired 52 | 52 Missed 17 | 17 Damage Taken 838 | 838 Core 264 | 264 Absorbed by Shields . | . Core Remaining (%) . | . Volleys Fired 166 | 166 Largest 2 | 2 Hottest 100 | 100 Shots Fired 173 | 173 Gun 16 | 16 Cannon . | . Launcher . | . Special 157 | 157 Kinetic 7 | 7 Thermal 166 | 166 Explosive . | . Electromagnetic . | . Robot Hit Streak 4 | 4 Robot Miss Streak 3 | 3 Penetration Max . | . Secondary Targets . | . Shots Hit Robots 9 | 9 Core Hits 7 | 7 Critical Kills . | . Critical Parts Destroyed . | . Critical Strikes . | . Melee Attacks . | . Impact . | . Slashing . | . Piercing . | . Sneak Attacks . | . Combat Hostiles . | . Follow-up Attacks . | . Damage Inflicted 126 | 126 Guns 102 | 102 Cannons . | . Explosions . | . Melee . | . Ramming . | . Kinetic 77 | 77 Thermal 49 | 49 Explosive . | . Electromagnetic . | . Impact . | . Slashing . | . Piercing . | . Highest Corruption . | . Average Corruption . | . Corruption Purged . | . Corruption Blocked . | . Overload Shots . | . Overflow Damage . | . Projectiles . | . Explosions . | . Melee . | . Knockbacks . | . Impact . | . Kinetic . | . Secondary . | . Self-Inflicted Damage . | . Shots . | . Rammed . | . Targets Rammed . | . Kicked . | . Crushed . | . Highest Temperature 232 | 232 Average Temperature 83 | 83 Received Heat Transfer 80 | 80 Siege Activations . | . Robots Corrupted . | . Combat Hostiles . | . Parts Fried . | . Impact Corruptions . | . Robots Melted . | . Combat Hostiles . | . Parts Melted 1 | 1 Heat Transferred 124 | 124 Parts Sabotaged . | . Parts Stolen . | . Parts Stripped . | . Power Chain Reactions . | . Alert | -11 ------- Run | Yrd Peak Influence 25 | 25 Initial . | . Average 7 | 7 Maximum Alert Level . | . Low Security (%) 100 | 100 Level 1 . | . Level 2 . | . Level 3 . | . Level 4 . | . Level 5 . | . High Security . | . Max Security . | . Squads Dispatched . | . Investigation . | . Extermination . | . Reinforcement . | . Assault . | . Garrison . | . Intercept . | . Searches Triggered . | . Construction Impeded . | . Haulers Reinforced . | . Active Scanning Responses . | . Cargo Convoy Interrupts . | . Stealth | -11 --------- Run | Yrd Distress Signals . | . Communications Jammed . | . Distress Signals . | . Times Spotted 18 | 18 Peak Tracking Total 11 | 11 Tactical Retreats . | . Traps | -11 ------- Run | Yrd Traps Triggered . | . Indirectly . | . Trap Hack Attempts . | . Triggered . | . Disarmed . | . Reprogrammed . | . Reused . | . Traps Extracted . | . Installed . | . Triggered . | . Machines | -11 ---------- Run | Yrd Machines Disabled . | . Max in Single Turn . | . Machines Repaired . | . Machines Dismantled . | . Machines Sabotaged . | . Overloaded Fab Kills . | . Hacking | -11 --------- Run | Yrd Machines Accessed . | . Terminals . | . Fabricators . | . Repair Stations . | . Recycling Units . | . Scanalyzers . | . Garrison Access . | . Total Hacks . | . Successful . | . Failed . | . Catastrophic . | . Database Lockouts . | . Manual . | . Terminals . | . Fabricators . | . Repair Stations . | . Recycling Units . | . Scanalyzers . | . Garrison Access . | . Terminal Hacks . | . Fabricator Hacks . | . Repair Station Hacks . | . Recycling Unit Hacks . | . Scanalyzer . | . Garrison Access Hacks . | . Unauthorized Hacks . | . Terminals . | . Fabricators . | . Repair Stations . | . Recycling Units . | . Scanalyzers . | . Garrison Access . | . Data Cores Recovered . | . Used . | . Hacking Detections . | . Full Trace Events . | . Feedback Events . | . Feedback Blocked . | . Robot Schematics Acquired . | . Robots Built . | . Authchips . | . Time . | . Total Robot Build Rating . | . Part Schematics Acquired . | . Parts Built . | . Authchips . | . Time . | . Total Part Build Rating . | . Parts Repaired . | . Time . | . Parts Recycled . | . Recycled Matter . | . Retrieved Matter . | . Retrieved Components . | . Parts Scanalyzed . | . Part Schematics Acquired . | . Parts Damaged . | . Bothacking | -11 ------------ Run | Yrd Used RIF Installer . | . Robots Hacked . | . Non-combat . | . Combat . | . Robot Hacks Applied . | . Relay Couplers Released . | . Fabnet Peak Effective % . | . Robots Rewired . | . Allies Hacked . | . Hacks Repelled . | . Allies | -11 -------- Run | Yrd Total Allies . | . Largest Group . | . Highest-Rated Group . | . Highest-Rated Ally . | . Total Orders . | . Ally Attacks . | . Total Damage . | . Kills . | . Allies Corrupted . | . Allies Melted . | . Intel | -11 ------- Run | Yrd Robot Analysis Total . | . Derelict Logs Recovered . | . Drone Launches . | . Drone Recoveries . | . Exploration | -11 ------------- Run | Yrd Turns Passed 1271 | 1271 Spaces Moved 502 | 502 Core 18 | 18 Treads . | . Legs 484 | 484 Wheels . | . Hover . | . Flight . | . Fastest Speed 50 | 50 Average Speed 118 | 118 Slowest Speed 150 | 150 Overloaded Moves . | . Propulsion Burnouts . | . Robots Hopped . | . Cave-ins Triggered . | . Exploration Rate (%) 28 | 28 Regions Visited . Branch Regions . Pre-discovered Areas . | . Known Exits Taken . | . Unknown Exits Taken . | . Scrap Searched . | . Spaces Dug 60 | 60 Terrain Destroyed 72 | 72 Melee . | . Projectile 72 | 72 AOE . | . Terrain Rammed . | . Walls Destroyed . | . Machines Disabled . | . Actions | -11 --------- Run | Yrd Total 690 | 690 Wait . | . Move 502 | 502 Hop . | . Pick Up 11 | 11 Fast Attach . | . Attach 8 | 8 Detach . | . Swap 3 | 3 Drop . | . Fire 166 | 166 Melee . | . Ram . | . Kick . | . Crush . | . Escape Stasis . | . Rewire . | . Trap . | . Miscellaneous . | . Route ------- -11/Scrapyard (discovered 1 exit: [*Mat]) History --------- Turn | Location | Event 5 | -11/Scrapyard | Discovered new exit (range 16) 1225 | -11/Scrapyard | Assembled infested the area 1263 | -11/Scrapyard | Core integrity fell below 50% 1270 | -11/Scrapyard | Core integrity fell below 20% 1272 | -11/Scrapyard | Destroyed by as-03248 with Assembled Heavy Rifle Last Messages --------------- [Achievement: Curiosity Killed The Cat] C-30 ARC bursts open, deploying its payload. D-53 Grenadier unfolds itself. The unstable cave ceiling collapses. Assault Rifle destroyed. Ion Engine destroyed. Aluminum Leg destroyed. as-84879 destroyed. as-52486 destroyed. as-26498 destroyed. as-85498 destroyed. D-53 Grenadier destroyed. The unstable cave ceiling collapses. Aluminum Leg destroyed. The unstable cave ceiling collapses. Med. Laser destroyed. as-34192 destroyed. The unstable cave ceiling collapses. Mining Laser destroyed. Knocked back. Map ----- +----------------------------------------------------+ | ????# #??????########??# #?????????????????????? | | ????# #????????????????# #??#??????????????????? | | ????# #?##?????##??????# ##????????????????????? | | ????# #?????????????##?# #?????????????????????? | | ????# #????????????#???# #?????????????????????? | | ???## ###????????#?????# #?????????????????????? | | ??## ################# #????#????????????????? | | ??# #?????????????????????? | | ??## #??#??????????????????? | | ???# ################# #?????????????????????? | | ???#######?????## # #### ###########???????????? | | ??????????#??### # #???????????? | | ???#????????## # #???????????? | | ????????#?#?# #???????????? | | ????????????## =| a# #???????????? | | ?#???????#???# % #######???????????? | | ?????????????# #### #a a ####??????????????? | | ?????????????##??# #??????????????? | | ???????????#??#??# #aa #??????????????? | | ?????????????????# #??????????????? | | ????????#????????# a ##?????????????? | | ???????##????????# # #??????????????? | | ?????#?????????#?# a ###?????????????? | | ??????????????#??#### # aa ####???????????????? | | ???????############?# a #??????????????????? | | ???????## #??## @a #?#????????????????? | | ????????# ! ##?# ##########?????????? | | ???#????# #### *% ????????? | | ????? ? == ! * ! ????????? | | ??#???? = [ =* ### ######?????????? | | ?????##?# = ##### ! < #?? ?#???????????? | | ????#???# #??# #? ?? #?? ????????? | | ???##???# #?## ########? ??? #???????????? | | ????###?#### ####### #?????#??????????????????? | | ??#???#??#?????##### ##?###????????????????????? | | ?#####???#?#?##### # ####?##????? ?#?????????????? | | ??##?????##?#### # #????##??#?????#????????????? | | ????#??#???### #?#??#??????????????????????? | | ???#??####?### # #????#??????????????????????? | | ?##??#??#### # ## #??#????#??#?#?#????????????? | | ###?#??## #####???????#?#?????????????????? | | #?#???### ### #####???##?######????????????????? | | ?#?#?#?## #?###?##?#??????##???????????????????? | | #?####?# ####?###????#??##????????????????????? | | ## ### ##?#?#????##?#??#???????????????????? | | # # ###?#????###???###??#?????????????????? | | # ### #?????###???#?????#???????????????????? | | # ###### #??#?#??###???#??????????????????????? | | ## ###??#??####??##??????????????????????????????? | | ## ##?##?#?#?????#?#????#????????????????????????? | +----------------------------------------------------+ Best States ------------- Heat Dissipation 25 Energy Generation 10 Energy Capacity 250 Matter Stores 229 Matter Capacity 300 Sight Range 16 Terrain Scan Range 16 Terrain Scan Density 10 Evasion (%) 55 Item Schematics ----------------- None Robot Schematics ------------------ None Fabricated ------------ Nothing Alien Tech Used ----------------- None Achievements -------------- Curiosity Killed The Cat Challenges ------------ None Game ------ Seed DeuteriumIntegratedAutobeam Manual? 0 Play Time 00:20:32 Cumulative 7.0 hours Start 2024.04.05 @ 21:55:39 End 2024.04.05 @ 22:07:09 Sessions 0 Manual Loads 0 Difficulty Rogue Special Mode None Game No. 19 Rogue 19 Adventurer 0 Explorer 0 Win Type - Total 0 Types 0/0/0/0/0/0/0/0/0 Lore% 12 Gallery% 16 Achievement% 16 Wizard Run 0 Options --------- Layout 1 ASCII 0 Keyboard 0 Movement Arrows Keybinds 0 Fullscreen 1 Font 24/Smallcaps Map View 50x35 Zoom Use 0% Tactical HUD 0 Map Filters NONE Filters NONE Steam 1 RUN: c49eb005-7ba5-425a-9a11-07e1f39bd670